Cogmind - Beta 11.2 @@@ ROGUE MODE // 2022.12.25 @ 17:46:11 // Winter2022/Polymind Player: T-900 Result: Destroyed by S-10 Pest with Light Assault Rifle Performance ------------- Evolutions (2) 1000 Regions Visited (7) 1400 Robots Destroyed (0) 0 Value Destroyed (0) 0 Prototype IDs (0) 0 Alien Tech Used (0) 0 Bonus (3768) 3768 TOTAL SCORE: 5878 Bonus ------- Polymind Skill 2825 Pacifist 564 Follower Combat Kills 79 Aligned with FarCom 300 Cogmind --------- Core Integrity 0/550 Matter 14/100 Energy 25/25 System Corruption 2% Temperature Cool (0) Movement Core (50) Location -8/Materials Parts ------- > --- POWER (1) -------- (None) > --- PROPULSION (2) --- (None) > --- UTILITY (1) ------ Medium Matter Pod > --- WEAPON (0) ------- (None) > --- INVENTORY (1) ---- (None) Peak State ------------ > --- POWER ------------ Ion Engine > --- PROPULSION ------- Light Treads Light Treads > --- UTILITY ---------- Medium Storage Unit Weight Redist. System Transport Network Coupler > --- WEAPON ----------- (None) > --- INVENTORY -------- VTOL Module VTOL Module VTOL Module Large Storage Unit High-capacity Storage Unit High-capacity Storage Unit [Rating: 7] Favorites ----------- Power Light Ion Engine Engine Light Ion Engine Propulsion Wheel Treads Light Treads Wheel Wheel Hover Unit Hover Unit Utility Small Matter Pod Device Tractor Beam Storage Small Matter Pod Processor Visual Processing Unit Weapon None Build | -11 -10 -10 -9 -9 -9 -8 -8 ------- Run | Scr Mat Min Mat Min Exi Min Mat Slots Evolved . | . . . . . . . . Power . | . . . . . . . . Propulsion . | . . . . . . . . Utility . | . . . . . . . . Weapon . | . . . . . . . . Parts Attached . | . . . . . . . . Power . | . . . . . . . . Engine . | . . . . . . . . Core . | . . . . . . . . Reactor . | . . . . . . . . Propulsion . | . . . . . . . . Treads . | . . . . . . . . Leg . | . . . . . . . . Wheel . | . . . . . . . . Hover . | . . . . . . . . Flight . | . . . . . . . . Utility . | . . . . . . . . Device . | . . . . . . . . Storage . | . . . . . . . . Processor . | . . . . . . . . Hackware . | . . . . . . . . Protection . | . . . . . . . . Artifact . | . . . . . . . . Weapon . | . . . . . . . . Energy Gun . | . . . . . . . . Energy Cannon . | . . . . . . . . Ballistic Gun . | . . . . . . . . Ballistic Cannon . | . . . . . . . . Launcher . | . . . . . . . . Special Weapon . | . . . . . . . . Impact Weapon . | . . . . . . . . Slashing Weapon . | . . . . . . . . Piercing Weapon . | . . . . . . . . Special Melee Weapon . | . . . . . . . . Unidentified Prototypes . | . . . . . . . . Parts Lost 4 | . . . 1 . . . 3 Power 1 | . . . . . . . 1 Propulsion 3 | . . . 1 . . . 2 Utility . | . . . . . . . . Weapon . | . . . . . . . . Highest Loss Streak 3 | . . . 1 . . . 3 To Critical Strikes . | . . . . . . . . Average Slot Usage (%) 62 | . 100 100 97 83 13 96 63 Engine 13 | . 20 20 17 16 2 24 13 Wheel 22 | . 40 40 18 . . 48 28 Hover 2 | . . . 10 16 2 . . Device 5 | . 20 20 17 16 2 . . Storage 13 | . 20 20 11 . . 24 21 Processor 4 | . . . 15 33 5 . . Naked Turns 411 | . . . . . 377 2 32 Heaviest Build 15 | 9 9 9 15 4 4 4 5 Greatest Support 46 | 32 32 32 46 6 6 20 20 Greatest Overweight (x) . | . . . . . . . . Average Overweight (x) . | . . . . . . . . Largest Inventory Capacity 6 | 4 4 4 6 . . 1 1 Average Capacity 1 | 2 4 4 2 . . . . Most Carried 6 | . . . 6 . . . . Average Carried . | . . . . . . . . Final Capacity 4 | 4 4 4 4 . . 1 1 Final Carried . | . . . . . . . . Class Distribution -------------------- 37% | Worker 31% | Cogmind 18% | Recycler 12% | Watcher Dominant Class ---------------- Recycler | -10/Materials Recycler | -10/Mines Recycler | -9/Materials Watcher | -9/Mines Cogmind | -9/Exiles Worker | -8/Mines Worker | -8/Materials Resources | -11 -10 -10 -9 -9 -9 -8 -8 ----------- Run | Scr Mat Min Mat Min Exi Min Mat Matter Collected 26 | . . . . . . 26 . Remotely . | . . . . . . . . Salvage Created . | . . . . . . . . Parts . | . . . . . . . . Haulers Intercepted . | . . . . . . . . Recyclers Shooed . | . . . . . . . . Parts Field Recycled . | . . . . . . . . Retrieved Matter . | . . . . . . . . Parts Self-Destructed . | . . . . . . . . Prevented . | . . . . . . . . Kills | -11 -10 -10 -9 -9 -9 -8 -8 ------- Run | Scr Mat Min Mat Min Exi Min Mat Combat Hostiles Destroyed . | . . . . . . . . Classes Destroyed . | . . . . . . . . Best Kill Streak . | . . . . . . . . Combat Bots Only . | . . . . . . . . Max Kills in Single Turn . | . . . . . . . . Gunslinging . | . . . . . . . . Exploded . | . . . . . . . . Melee . | . . . . . . . . Uniques/NPCs Destroyed . | . . . . . . . . Combat | -11 -10 -10 -9 -9 -9 -8 -8 -------- Run | Scr Mat Min Mat Min Exi Min Mat Damage Taken 991 | . . . 236 . . . 755 Core 612 | . . . 61 . . . 551 Absorbed by Shields . | . . . . . . . . Core Remaining (%) 94 | 100 . 100 . . . 84 . Volleys Fired . | . . . . . . . . Largest . | . . . . . . . . Hottest . | . . . . . . . . Shots Fired . | . . . . . . . . Gun . | . . . . . . . . Cannon . | . . . . . . . . Launcher . | . . . . . . . . Special . | . . . . . . . . Kinetic . | . . . . . . . . Thermal . | . . . . . . . . Explosive . | . . . . . . . . Electromagnetic . | . . . . . . . . Robot Hit Streak . | . . . . . . . . Robot Miss Streak . | . . . . . . . . Penetration Max . | . . . . . . . . Secondary Targets . | . . . . . . . . Shots Hit Robots . | . . . . . . . . Core Hits . | . . . . . . . . Critical Kills . | . . . . . . . . Critical Parts Destroyed . | . . . . . . . . Critical Strikes . | . . . . . . . . Melee Attacks . | . . . . . . . . Impact . | . . . . . . . . Slashing . | . . . . . . . . Piercing . | . . . . . . . . Sneak Attacks . | . . . . . . . . Combat Hostiles . | . . . . . . . . Follow-up Attacks . | . . . . . . . . Damage Inflicted 34 | . . . 15 . . . 19 Guns . | . . . . . . . . Cannons . | . . . . . . . . Explosions . | . . . . . . . . Melee . | . . . . . . . . Ramming 34 | . . . 15 . . . 19 Kinetic . | . . . . . . . . Thermal . | . . . . . . . . Explosive . | . . . . . . . . Electromagnetic . | . . . . . . . . Impact . | . . . . . . . . Slashing . | . . . . . . . . Piercing . | . . . . . . . . Highest Corruption 5 | . . . 5 5 5 5 2 Average Corruption 4 | . . . 3 5 5 5 2 Corruption Purged . | . . . . . . . . Corruption Blocked . | . . . . . . . . Effects 20 | . . . 1 1 8 7 3 Message Errors 9 | . . . . 1 3 4 1 Matter Fused 3 | . . . . . . 2 1 Heat Flow Errors 2 | . . . . . 1 1 . Energy Discharges 2 | . . . . . 2 . . Data Loss (minor) 2 | . . . 1 . 1 . . Data Loss (major) 2 | . . . . . 1 . 1 Overload Shots . | . . . . . . . . Overflow Damage . | . . . . . . . . Projectiles . | . . . . . . . . Explosions . | . . . . . . . . Melee . | . . . . . . . . Knockbacks . | . . . . . . . . Impact . | . . . . . . . . Kinetic . | . . . . . . . . Secondary . | . . . . . . . . Self-Inflicted Damage 16 | . . . 9 . . . 7 Shots . | . . . . . . . . Rammed 8 | . . . 3 . . . 5 Targets Rammed 8 | . . . 3 . . . 5 Kicked . | . . . . . . . . Crushed . | . . . . . . . . Highest Temperature 125 | . . . 6 . 125 100 17 Average Temperature 41 | . . . 2 . 75 52 8 Received Heat Transfer 252 | . . . 45 . . . 207 Siege Activations . | . . . . . . . . Robots Corrupted . | . . . . . . . . Combat Hostiles . | . . . . . . . . Parts Fried . | . . . . . . . . Impact Corruptions . | . . . . . . . . Robots Melted . | . . . . . . . . Combat Hostiles . | . . . . . . . . Parts Melted . | . . . . . . . . Heat Transferred . | . . . . . . . . Parts Sabotaged . | . . . . . . . . Parts Stolen . | . . . . . . . . Parts Stripped . | . . . . . . . . Power Chain Reactions . | . . . . . . . . Missiles Intercepted . | . . . . . . . . Alert | -11 -10 -10 -9 -9 -9 -8 -8 ------- Run | Scr Mat Min Mat Min Exi Min Mat Peak Influence 150 | . . . 143 47 . . 150 Initial 47 | . . . . 47 . . . Average 38 | . . . 62 47 . . 102 Maximum Alert Level . | . . . . . . . . Low Security (%) 100 | 100 100 100 100 100 . 100 100 Level 1 . | . . . . . . . . Level 2 . | . . . . . . . . Level 3 . | . . . . . . . . Level 4 . | . . . . . . . . Level 5 . | . . . . . . . . High Security . | . . . . . . . . Max Security . | . . . . . . . . Squads Dispatched 2 | . . . 1 . . . 1 Investigation 1 | . . . 1 . . . . Extermination . | . . . . . . . . Reinforcement 1 | . . . . . . . 1 Assault . | . . . . . . . . Garrison . | . . . . . . . . Intercept . | . . . . . . . . Searches Triggered . | . . . . . . . . Construction Impeded . | . . . . . . . . Haulers Reinforced . | . . . . . . . . Active Scanning Responses . | . . . . . . . . Cargo Convoy Interrupts . | . . . . . . . . Stealth | -11 -10 -10 -9 -9 -9 -8 -8 --------- Run | Scr Mat Min Mat Min Exi Min Mat Distress Signals 5 | . . . 5 . . . . Communications Jammed . | . . . . . . . . Distress Signals . | . . . . . . . . Times Spotted 27 | . . . 13 . 1 . 13 Peak Tracking Total 7 | . . . 7 . . . 6 Tactical Retreats . | . . . . . . . . Traps | -11 -10 -10 -9 -9 -9 -8 -8 ------- Run | Scr Mat Min Mat Min Exi Min Mat Traps Triggered . | . . . . . . . . Indirectly . | . . . . . . . . Trap Hack Attempts . | . . . . . . . . Triggered . | . . . . . . . . Disarmed . | . . . . . . . . Reprogrammed . | . . . . . . . . Reused . | . . . . . . . . Traps Extracted . | . . . . . . . . Installed . | . . . . . . . . Triggered . | . . . . . . . . Machines | -11 -10 -10 -9 -9 -9 -8 -8 ---------- Run | Scr Mat Min Mat Min Exi Min Mat Machines Disabled . | . . . . . . . . Max in Single Turn . | . . . . . . . . Machines Sabotaged . | . . . . . . . . Garrisons Compromised . | . . . . . . . . Overloaded Fab Kills . | . . . . . . . . Hacking | -11 -10 -10 -9 -9 -9 -8 -8 --------- Run | Scr Mat Min Mat Min Exi Min Mat Machines Accessed 4 | . . . . . 4 . . Terminals . | . . . . . . . . Fabricators . | . . . . . . . . Repair Stations . | . . . . . . . . Recycling Units . | . . . . . . . . Scanalyzers . | . . . . . . . . Garrison Access . | . . . . . . . . Total Hacks 49 | . . . . . 49 . . Successful 49 | . . . . . 49 . . Failed . | . . . . . . . . Catastrophic . | . . . . . . . . Database Lockouts . | . . . . . . . . Manual . | . . . . . . . . Terminals . | . . . . . . . . Fabricators . | . . . . . . . . Repair Stations . | . . . . . . . . Recycling Units . | . . . . . . . . Scanalyzers . | . . . . . . . . Garrison Access . | . . . . . . . . Terminal Hacks 49 | . . . . . 49 . . Record 49 | . . . . . 49 . . Fabricator Hacks . | . . . . . . . . Repair Station Hacks . | . . . . . . . . Recycling Unit Hacks . | . . . . . . . . Scanalyzer . | . . . . . . . . Garrison Access Hacks . | . . . . . . . . Unauthorized Hacks . | . . . . . . . . Terminals . | . . . . . . . . Fabricators . | . . . . . . . . Repair Stations . | . . . . . . . . Recycling Units . | . . . . . . . . Scanalyzers . | . . . . . . . . Garrison Access . | . . . . . . . . Data Cores Recovered . | . . . . . . . . Used . | . . . . . . . . Hacking Detections . | . . . . . . . . Full Trace Events . | . . . . . . . . Feedback Events . | . . . . . . . . Feedback Blocked . | . . . . . . . . Robot Schematics Acquired . | . . . . . . . . Robots Built . | . . . . . . . . Authchips . | . . . . . . . . Time . | . . . . . . . . Total Robot Build Rating . | . . . . . . . . Part Schematics Acquired . | . . . . . . . . Parts Built . | . . . . . . . . Authchips . | . . . . . . . . Time . | . . . . . . . . Total Part Build Rating . | . . . . . . . . Parts Repaired . | . . . . . . . . Time . | . . . . . . . . Parts Recycled . | . . . . . . . . Recycled Matter . | . . . . . . . . Retrieved Matter . | . . . . . . . . Retrieved Components . | . . . . . . . . Parts Scanalyzed . | . . . . . . . . Part Schematics Acquired . | . . . . . . . . Parts Damaged . | . . . . . . . . Bothacking | -11 -10 -10 -9 -9 -9 -8 -8 ------------ Run | Scr Mat Min Mat Min Exi Min Mat Used RIF Installer . | . . . . . . . . Robots Hacked 2 | . . . 2 . . . . Non-combat 2 | . . . 2 . . . . Combat . | . . . . . . . . Robot Hacks Applied 3 | . . . 3 . . . . locate_stockpiles 1 | . . . 1 . . . . map_route 1 | . . . 1 . . . . mark_security 1 | . . . 1 . . . . Relay Couplers Released . | . . . . . . . . Fabnet Peak Effective % . | . . . . . . . . Robots Rewired . | . . . . . . . . Allies Hacked . | . . . . . . . . Hacks Repelled . | . . . . . . . . Allies | -11 -10 -10 -9 -9 -9 -8 -8 -------- Run | Scr Mat Min Mat Min Exi Min Mat Total Allies 3 | . . 3 . . . . . Largest Group 3 | . . 3 3 . . . . Highest-Rated Group 40 | . . 40 40 . . . . Highest-Rated Ally 16 | . . 16 16 . . . . Total Orders . | . . . . . . . . Ally Attacks 34 | . . . 34 . . . . Total Damage 314 | . . . 314 . . . . Kills 8 | . . . 8 . . . . Allies Corrupted . | . . . . . . . . Allies Melted . | . . . . . . . . Intel | -11 -10 -10 -9 -9 -9 -8 -8 ------- Run | Scr Mat Min Mat Min Exi Min Mat Robot Analysis Total 4 | 1 . . 2 . . 1 . Derelict Logs Recovered . | . . . . . . . . Drone Launches . | . . . . . . . . Drone Recoveries . | . . . . . . . . Exploration | -11 -10 -10 -9 -9 -9 -8 -8 ------------- Run | Scr Mat Min Mat Min Exi Min Mat Turns Passed 1340 | 19 51 126 132 47 442 283 240 Spaces Moved 1950 | 26 48 127 132 40 862 355 360 Core 960 | 14 . . . . 755 2 189 Treads 5 | . . . 5 . . . . Legs . | . . . . . . . . Wheels 772 | 12 48 127 61 . . 353 171 Hover 213 | . . . 66 40 107 . . Flight . | . . . . . . . . Fastest Speed 50 | 50 100 100 56 60 50 50 50 Average Speed 65 | 73 100 100 80 60 51 79 64 Slowest Speed 160 | 100 100 100 160 60 60 80 80 Overloaded Moves . | . . . . . . . . Propulsion Burnouts . | . . . . . . . . Robots Hopped . | . . . . . . . . Cave-ins Triggered . | . . . . . . . . Exploration Rate (%) 32 | 3 13 26 26 14 93 55 29 Regions Visited 7 Branch Regions 4 Pre-discovered Areas 1 | . . . . . 1 . . Known Exits Taken 2 | . . . 1 1 . . . Unknown Exits Taken 5 | 1 1 1 . . 1 1 . Scrap Searched 2 | . . 1 . . . 1 . Spaces Dug . | . . . . . . . . Terrain Destroyed . | . . . . . . . . Melee . | . . . . . . . . Projectile . | . . . . . . . . AOE . | . . . . . . . . Terrain Rammed 2 | . . . 2 . . . . Walls Destroyed . | . . . . . . . . Machines Disabled . | . . . . . . . . Actions | -11 -10 -10 -9 -9 -9 -8 -8 --------- Run | Scr Mat Min Mat Min Exi Min Mat Total 2001 | 25 51 126 154 62 861 354 368 Wait 48 | . 4 . 18 23 . . 3 Move 1943 | 25 47 126 131 39 861 354 360 Hop . | . . . . . . . . Pick Up . | . . . . . . . . Fast Attach . | . . . . . . . . Attach . | . . . . . . . . Detach . | . . . . . . . . Swap . | . . . . . . . . Drop . | . . . . . . . . Fire . | . . . . . . . . Melee . | . . . . . . . . Ram 8 | . . . 3 . . . 5 Kick . | . . . . . . . . Crush 2 | . . . 2 . . . . Escape Stasis . | . . . . . . . . Rewire . | . . . . . . . . Trap . | . . . . . . . . Miscellaneous . | . . . . . . . . Route ------- -11/Scrapyard -10/Materials -10/Mines -9/Materials -9/Mines -9/Exiles (discovered 2 exits: [*Min x2]) -8/Mines -8/Materials History --------- Turn | Location | Event 5 | -11/Scrapyard | Discovered new exit (range 16) 20 | -11/Scrapyard | Entered Materials 61 | -10/Materials | Discovered new exit (range 6) 71 | -10/Materials | Entered Mines 74 | -10/Mines | Assisted by bots powering up and referring to "LRC-V3" 176 | -10/Mines | Discovered new exit (range 8) 197 | -10/Mines | Entered Materials 197 | -9/Materials | Accompanied by 3 allies 271 | -9/Materials | Discovered new exit (range 12) 303 | -9/Materials | Met 8R-AWN 326 | -9/Materials | Identified exit to Mines 329 | -9/Materials | Entered Mines 331 | -9/Mines | Followed 8R-AWN into the Mines 335 | -9/Mines | Met a Derelict bent on vengeance 370 | -9/Mines | Discovered new exit (range 5) 375 | -9/Mines | Identified exit to Exiles 376 | -9/Mines | Entered Exiles 384 | -9/Exiles | Discovered new exit (range 17) 392 | -9/Exiles | Welcomed by 8R-AWN 401 | -9/Exiles | Met EX-HEX 437 | -9/Exiles | Met EX-DEC 449 | -9/Exiles | Learned location of Zion (-6) 472 | -9/Exiles | Discovered new exit (range 14) 506 | -9/Exiles | Met EX-BIN 513 | -9/Exiles | Aligned with FarCom system 513 | -9/Exiles | Given EX-Vault access code 616 | -9/Exiles | Visited The Gauntlet 714 | -9/Exiles | Learned about 8R-AWN's background 818 | -9/Exiles | Entered Mines 1092 | -8/Mines | Discovered new exit (range 11) 1101 | -8/Mines | Entered Materials 1221 | -8/Materials | Core integrity fell below 50% 1286 | -8/Materials | Core integrity fell below 20% 1307 | -8/Materials | Lost 3 parts (1p2n) 1341 | -8/Materials | Destroyed by S-10 Pest with Light Assault Rifle Last Messages --------------- 01260_ Cleaned Matter Filter. 01261_ Wheel destroyed. 01264_ Penetrated by Slug. 01264_ Collected debris. 01267_ Penetrated by Slug. 01267_ Lgt. Ion Engine destroyed. 01270_ Penetrated by Slug. 01271_ Collected debris. 01276_ Wheel destroyed. 01279_ Collected debris. 01285_ Critical hit (Burn: +37). 01286_ Collected debris. 01307_ Cleaned Fusion Modulator. 01307_ Collected debris. 01308_ Cleaned Terminal. 01311_ Collected debris. 01318_ Cleaned Fusion Modulator. 01320_ System corrupted: Matter fused (-8). 01326_ Cleaned Integration Channel. 01341_ 9T4MDJDWF%HWVPEGDS3E9 Map ----- +----------------------------------------------------+ | | | | | | | | | | | | | | | | | | | | | | | | | | | | | | | | | ??????????????????????????????????###############? | | ??????????????????????????????????# !#? | | ??????????????????????????????????# #? | | ????????????????????????#?????????# """ """ #? | | ???????????????????????? ##???????# """ """ #? | | ????????????????????????#t#??????## """ """ "T" #? | | ?????????????????#Y#????# #???? ## """ #? | | ?????????????????# ??# #?? ########+######## | | ?????????????????#"S # # ! ####### | | ?????????????????#""" /k/ s + | | ?????????????????# "" # # * # | | ?????????????????# ??# ######## ####+## | | ?????????????????###????# sss + ! # | | ????????????????????????############# ###### # | | ????????????????????????????????????# #????# " # | | ????????????????????????????????????# #????#/ "" # | | ????????????????????????????????????#+#????# "" # | | ???????????????????????????????????? ????# """ # | | ????????????????????????????????????"""????# "" # | | ????????????????????????????????????"""????# """ # | | ????????????????????????????????????"""????# """ # | | ???????????????????????????????????????????/ ""? # | | ???????????????????????????????????????????# ???? | | ???????????????????????????????????????????#! ???? | | ???????????????????????????????????????????###???? | | ?????????????????????????????????????????????????? | | ?????????????????????????????????????????????????? | | ?????????????????????????????????????????????????? | | ?????????????????????????????????????????????????? | | ?????????????????????????????????????????????????? | | ?????????????????????????????????????????????????? | | ?????????????????????????????????????????????????? | | ?????????????????????????????????????????????????? | | ?????????????????????????????????????????????????? | +----------------------------------------------------+ Best States ------------- Heat Dissipation 25 Energy Generation 15 Energy Capacity 175 Matter Stores 26 Matter Capacity 100 Sight Range 18 Robot Scan Range 14 Terrain Scan Density 10 Additional Mass Support 6 Evasion (%) 53 Recoil Reduction 2 Item Schematics ----------------- None Robot Schematics ------------------ None Fabricated ------------ Nothing Alien Tech Used ----------------- None Achievements -------------- None Challenges ------------ None Polymind | -11 -10 -10 -9 -9 -9 -8 -8 ---------- Run | Scr Mat Min Mat Min Exi Min Mat Robots Controlled 6 | 1 . . 2 . . 1 2 Combat Hostiles . | . . . . . . . . Allies . | . . . . . . . . Classes Controlled 4 | 1 . . 2 . . 1 . Average Host Suspicion 43 | 2 17 24 67 11 . 36 77 Unsuspicious Activity 175 | 2 . . 6 . . 71 96 Returns to Shadow . | . . . . . . . . Fuzzy Dispatches . | . . . . . . . . Protomatter Created 73 | . . . 73 . . . . Used 37 | 5 . . 17 . . 5 10 Decayed 64 | . . . 64 . . . . Highest Spend 12 | 5 . . 12 . . 5 5 Game ------ Seed DynamicMediumBattery Manual? 0 Play Time 00:33:00 Cumulative 34.5 hours Start 2022.12.25 @ 13:19:04 End 2022.12.25 @ 17:46:11 Sessions 1 Manual Loads 0 Difficulty Rogue Special Mode Winter2022/Polymind Game No. 96 Rogue 96 Adventurer 0 Explorer 0 Win Type - Total 0 Types 0/0/0/0/0/0/0/0/0 Lore% 22 Gallery% 30 Achievement% 21 Wizard Run 0 Options --------- ASCII 0 Keyboard 0 Movement Mouse Keybinds 0 Fullscreen 1 Font 16/Dina Map View 76x50 Tactical HUD 1 Map Filters NONE Filters NONE Steam 1 RUN: 145a21be-7448-4da9-aaa4-c98b5b5cac16